fUSD/lending_fUSD_20241203
["ID","MTS","AMOUNT","RATE_DAILY","PERIOD"]
[344044366,1733246276520,-500.0,0.00025,120]
[344044367,1733246276558,-500.0,0.00025,120]
[344044368,1733246276602,-316.49121932,0.00025,30]
[344044369,1733246276639,-500.0,0.00025,120]
[344044370,1733246276684,-658.09,0.00025,120]
[344044371,1733246276722,-500.64,0.00025,120]
[344044372,1733246276765,-500.0,0.00025,120]
[344044373,1733246276805,-1250.2,0.00025,120]
[344044374,1733246276853,-1159.12,0.00025,120]
[344044375,1733246276892,-895.49,0.00025,120]
[344044376,1733246276933,-619.42,0.00025,120]
[344044377,1733246276972,-500.0,0.00025,120]
[344044378,1733246277011,-501.52,0.00025,120]
[344044379,1733246277050,-500.0,0.00025,120]
[344044380,1733246277092,-1620.27,0.00025,120]
[344044381,1733246277132,-1567.85,0.00025,120]
[344044382,1733246277174,-537.78,0.00025,120]
[344044383,1733246277215,-1199.89,0.00025,120]
[344044384,1733246277261,-500.0,0.00025,120]
[344044385,1733246277301,-586.95,0.00025,120]
[344044386,1733246277345,-500.0,0.00025,120]
[344044387,1733246277385,-500.0,0.00025,120]
[344044388,1733246277426,-500.0,0.00025,120]
[344044389,1733246277467,-500.0,0.00025,120]
[344044390,1733246277506,-500.0,0.00025,120]
[344044391,1733246277559,-500.0,0.00025,120]
[344044392,1733246277603,-500.0,0.00025,120]
[344044393,1733246277644,-500.0,0.00025,120]
[344044394,1733246277683,-759.76,0.00025,120]
[344044395,1733246277722,-517.92344303,0.00025,120]
[344044396,1733246277763,-500.0,0.00025,120]
[344044397,1733246277803,-500.0,0.00025,120]
[344044398,1733246277849,-532.65,0.00025,120]
[344044399,1733246277892,-913.66,0.00025,120]
[344044400,1733246277938,-640.92,0.00025,120]
[344044401,1733246277980,-500.0,0.00025,120]
[344044402,1733246278022,-500.0,0.00025,120]
[344044403,1733246278065,-500.0,0.00025,120]
[344044404,1733246278112,-500.0,0.00025,120]
[344044405,1733246278153,-1088.27,0.00025,120]
[344044406,1733246278194,-500.0,0.00025,120]
[344044407,1733246278235,-500.0,0.00025,120]
[344044408,1733246278278,-687.1,0.00025,120]
[344044409,1733246278321,-500.0,0.00025,120]
[344044410,1733246278362,-500.0,0.00025,120]
[344044411,1733246278403,-500.0,0.00025,120]
[344044412,1733246278443,-500.0,0.00025,120]
[344044413,1733246278484,-616.18,0.00025,120]
[344044414,1733246278526,-500.0,0.00025,120]
[344044415,1733246278570,-500.0,0.00025,120]
[344044416,1733246278609,-1067.59,0.00025,120]
[344044417,1733246278650,-500.0,0.00025,120]
[344044418,1733246278690,-500.0,0.00025,120]
[344044419,1733246278731,-968.88,0.00025,120]
[344044420,1733246278772,-912.87,0.00025,120]
[344044421,1733246278816,-500.0,0.00025,120]
[344044422,1733246278860,-500.0,0.00025,120]
[344044423,1733246278900,-595.27,0.00025,120]
[344044424,1733246278941,-1065.93,0.00025,120]
[344044425,1733246278982,-500.0,0.00025,120]
[344044426,1733246279024,-1172.97,0.00025,120]
[344044427,1733246279070,-1328.5,0.00025,120]
[344044428,1733246279113,-500.0,0.00025,120]
[344044429,1733246279154,-500.0,0.00025,120]
[344044430,1733246279194,-500.0,0.00025,120]
[344044431,1733246279234,-500.0,0.00025,120]
[344044432,1733246279273,-581.2,0.00025,120]
[344044433,1733246279315,-500.0,0.00025,120]
[344044434,1733246279356,-2214.54,0.00025,120]
[344044435,1733246279397,-500.0,0.00025,120]
[344044436,1733246279438,-700.0,0.00025,120]
[344044437,1733246279478,-524.63,0.00025,120]
[344044438,1733246279521,-500.0,0.00025,120]
[344044439,1733246279560,-500.0,0.00025,120]
[344044440,1733246279600,-1166.44,0.00025,120]
[344044441,1733246279638,-511.40811185,0.00025,120]
[344044442,1733246279675,-541.46690678,0.00025,120]
[344044443,1733246279713,-500.0,0.00025,120]
[344044444,1733246279751,-500.0,0.00025,120]
[344044445,1733246279788,-2907.2,0.00025,120]
[344044446,1733246280163,-500.0,0.00025,120]
[344044447,1733246280203,-1573.71,0.00025,120]
[344044448,1733246280247,-500.0,0.00025,120]
[344044449,1733246280287,-500.0,0.00025,120]
[344044450,1733246280327,-984.46,0.00025,120]
[344044451,1733246280368,-766.88,0.00025,120]
[344044452,1733246280410,-610.44,0.00025,120]
[344044453,1733246280449,-500.0,0.00025,120]
[344044454,1733246280490,-1119.29,0.00025,120]
[344044455,1733246280530,-500.0,0.00025,120]
[344044456,1733246280574,-1738.2,0.00025,120]
[344044457,1733246280614,-500.0,0.00025,120]
[344044458,1733246280653,-500.0,0.00025,120]
[344044459,1733246280691,-968.26,0.00025,120]
[344044460,1733246280730,-500.0,0.00025,120]
[344044461,1733246280769,-500.0,0.00025,120]
[344044462,1733246280808,-500.0,0.00025,120]
[344044463,1733246280854,-500.0,0.00025,120]
[344044464,1733246280897,-500.0,0.00025,120]
[344044465,1733246280939,-500.0,0.00025,120]
[344044466,1733246280977,-500.0,0.00025,120]
[344044467,1733246281016,-657.41,0.00025,120]
[344044468,1733246281055,-500.0,0.00025,120]
[344044469,1733246281100,-637.32353887,0.00025,120]
[344044470,1733246281140,-3036.77,0.00025,120]
[344044471,1733246281179,-500.0,0.00025,120]
[344044472,1733246281218,-500.0,0.00025,120]
[344044473,1733246281258,-1098.3,0.00025,60]
[344044474,1733246281298,-500.0,0.00025,120]
[344044475,1733246281338,-556.38965007,0.00025,120]
[344044476,1733246281378,-500.0,0.00025,120]
[344044477,1733246281416,-1269.11,0.00025,120]
[344044478,1733246281455,-1576.97,0.00025,120]
[344044479,1733246281493,-500.0,0.00025,120]
[344044480,1733246281533,-1001.92,0.00025,120]
[344044481,1733246281576,-531.41,0.00025,120]
[344044482,1733246281616,-1168.12,0.00025,120]
[344044483,1733246281657,-892.74,0.00025,120]
[344044484,1733246281696,-500.0,0.00025,120]
[344044485,1733246281737,-1046.07,0.00025,120]
[344044486,1733246281776,-500.0,0.00025,120]
[344044487,1733246281820,-507.38380687,0.00025,120]
[344044488,1733246281866,-977.95,0.00025,120]
[344044489,1733246281905,-500.0,0.00025,120]
[344044490,1733246281946,-1056.42,0.00025,120]
[344044491,1733246281985,-500.0,0.00025,120]
[344044492,1733246282023,-500.0,0.00025,120]
[344044493,1733246282061,-500.0,0.00025,120]
[344044494,1733246282106,-500.0,0.00025,120]
[344044495,1733246282145,-1532.17,0.00025,120]
[344044496,1733246282184,-500.0,0.00025,120]
[344044497,1733246282223,-500.0,0.00025,120]
[344044498,1733246282263,-500.0,0.00025,120]
[344044499,1733246282304,-1082.12,0.00025,120]
[344044500,1733246282345,-656.37,0.00025,120]
[344044501,1733246282385,-500.0,0.00025,120]
[344044502,1733246282425,-500.0,0.00025,120]
[344044503,1733246282465,-500.0,0.00025,120]
[344044504,1733246282504,-1147.0,0.00025,120]
[344044505,1733246282544,-517.62,0.00025,120]
[344044506,1733246282584,-500.0,0.00025,120]
[344044507,1733246282624,-500.0,0.00025,120]
[344044508,1733246282663,-500.0,0.00025,120]
[344044509,1733246282703,-500.0,0.00025,120]
[344044510,1733246282742,-826.59,0.00025,120]
[344044511,1733246282781,-500.0,0.00025,120]
[344044512,1733246282825,-308.59354696,0.00025,120]
[344044513,1733246282865,-711.9,0.00025,120]
[344044514,1733246282907,-1104.52,0.00025,120]
[344044515,1733246282947,-500.0,0.00025,120]
[344044516,1733246282988,-529.71644638,0.00025,120]
[344044517,1733246283033,-500.0,0.00025,120]
[344044518,1733246283076,-786.04,0.00025,120]
[344044519,1733246283118,-546.23,0.00025,120]
[344044520,1733246283160,-500.0,0.00025,120]
[344044521,1733246283202,-500.0,0.00025,120]
[344044522,1733246283244,-1161.29,0.00025,120]
[344044523,1733246283290,-929.6,0.00025,120]
[344044524,1733246283332,-2145.87,0.00025,120]
[344044525,1733246283373,-734.94,0.00025,120]
[344044526,1733246283418,-500.0,0.00025,120]
[344044527,1733246283463,-208.51051341,0.00025,120]
[344044528,1733246283507,-1206.09,0.00025,120]
[344044529,1733246283555,-500.0,0.00025,120]
[344044530,1733246283600,-500.0,0.00025,120]
[344044531,1733246283641,-317.97497443,0.00025,120]
[344044532,1733246283682,-1408.92,0.00025,120]
[344044533,1733246283722,-500.0,0.00025,120]
[344044534,1733246283762,-995.4,0.00025,120]
[344044535,1733246283803,-500.0,0.00025,120]
[344044536,1733246283847,-937.3,0.00025,120]
[344044537,1733246283888,-1197.81,0.00025,120]
[344044538,1733246283928,-395.89283761,0.00025,120]
[344044539,1733246283966,-500.0,0.00025,120]
[344044540,1733246284006,-911.03,0.00025,120]
[344044541,1733246284045,-566.13,0.00025,120]
[344044542,1733246284319,-500.0,0.00025,120]
[344044543,1733246284383,-500.0,0.00025,120]
[344044544,1733246284425,-2095.87,0.00025,120]
[344044545,1733246284467,-500.0,0.00025,120]
[344044546,1733246284506,-586.32,0.00025,120]
[344044547,1733246284547,-500.0,0.00025,120]
[344044548,1733246284587,-500.0,0.00025,120]
[344044549,1733246284627,-500.0,0.00025,120]
[344044550,1733246284667,-1203.53,0.00025,120]
[344044551,1733246284707,-879.25,0.00025,120]
[344044552,1733246284746,-500.0,0.00025,120]
[344044553,1733246284788,-500.0,0.00025,120]
[344044554,1733246284832,-500.0,0.00025,120]
[344044555,1733246284880,-500.0,0.00025,120]
[344044556,1733246284921,-1189.15,0.00025,120]
[344044557,1733246284960,-500.0,0.00025,120]
[344044558,1733246285000,-841.7,0.00025,120]
[344044559,1733246285040,-500.0,0.00025,120]
[344044560,1733246285080,-1381.63,0.00025,120]
[344044561,1733246285118,-500.0,0.00025,120]
[344044562,1733246285154,-500.0,0.00025,120]
[344044563,1733246285191,-4134.18,0.00025,120]
[344044564,1733246285227,-769.58,0.00025,120]
[344044565,1733246285264,-500.0,0.00025,120]
[344044566,1733246285300,-1163.73,0.00025,120]
[344044567,1733246285337,-500.0,0.00025,120]
[344044568,1733246285377,-1033.99,0.00025,120]
[344044569,1733246285415,-711.8,0.00025,120]
[344044570,1733246285454,-500.0,0.00025,120]
[344044571,1733246285490,-500.0,0.00025,120]
[344044572,1733246285528,-500.0,0.00025,120]
[344044573,1733246285566,-267.11856099,0.00025,120]
[344044574,1733246285606,-1440.43,0.00025,120]
[344044575,1733246285643,-500.0,0.00025,120]
[344044576,1733246285679,-500.0,0.00025,120]
[344044577,1733246285716,-964.04,0.00025,120]
[344044578,1733246285752,-956.97,0.00025,120]
[344044579,1733246285790,-2860.22,0.00025,120]
[344044580,1733246285828,-500.0,0.00025,120]
[344044581,1733246285864,-500.0,0.00025,120]
[344044582,1733246285903,-1196.82,0.00025,120]
[344044583,1733246285942,-500.0,0.00025,120]
[344044584,1733246285978,-1892.14,0.00025,120]
[344044585,1733246286016,-1032.33,0.00025,120]
[344044586,1733246286054,-986.17,0.00025,120]
[344044587,1733246286092,-500.0,0.00025,120]
[344044588,1733246286128,-1192.12,0.00025,120]
[344044589,1733246286163,-565.71,0.00025,120]
[344044590,1733246286198,-1000.0,0.00025,120]
[344044591,1733246286233,-1124.3,0.00025,120]
[344044592,1733246286269,-500.0,0.00025,120]
[344044593,1733246286306,-500.0,0.00025,120]
[344044594,1733246286344,-1043.3,0.00025,120]
[344044595,1733246286383,-4430.69,0.00025,120]
[344044596,1733246286421,-2334.8,0.00025,120]
[344044597,1733246286457,-500.0,0.00025,120]
[344044598,1733246286493,-1119.9,0.00025,120]
[344044599,1733246286531,-1596.23,0.00025,120]
[344044600,1733246286571,-500.0,0.00025,120]
[344044601,1733246286609,-500.0,0.00025,120]
[344044602,1733246286646,-714.04,0.00025,120]
[344044603,1733246286683,-500.0,0.00025,120]
[344044604,1733246286720,-500.0,0.00025,120]
[344044605,1733246286760,-500.0,0.00025,120]
[344044606,1733246286797,-2640.16,0.00025,120]
[344044607,1733246286836,-500.0,0.00025,120]
[344044608,1733246286873,-500.0,0.00025,120]
[344044609,1733246286909,-500.0,0.00025,120]
[344044610,1733246286944,-500.0,0.00025,120]
[344044611,1733246286980,-500.0,0.00025,120]
[344044612,1733246287015,-1268.04,0.00025,120]
[344044613,1733246287052,-903.12,0.00025,120]
[344044614,1733246287089,-500.0,0.00025,120]
[344044615,1733246287128,-500.0,0.00025,120]
[344044616,1733246287166,-500.0,0.00025,120]
[344044617,1733246287205,-500.0,0.00025,120]
[344044618,1733246287243,-591.57685567,0.00025,120]
[344044619,1733246287281,-500.0,0.00025,120]
[344044620,1733246287319,-873.59,0.00025,120]
[344044621,1733246287365,-1040.74,0.00025,120]
[344044622,1733246287404,-1862.08,0.00025,120]
[344044623,1733246287445,-1386.44,0.00025,120]
[344044624,1733246287484,-500.0,0.00025,120]
[344044625,1733246287524,-2042.79,0.00025,120]
[344044626,1733246287564,-500.0,0.00025,120]
[344044627,1733246287612,-500.0,0.00025,120]
[344044628,1733246287654,-500.0,0.00025,120]
[344044629,1733246287696,-968.44,0.00025,120]
[344044630,1733246287735,-1237.18,0.00025,120]
[344044631,1733246287777,-500.0,0.00025,120]
[344044632,1733246287818,-1457.62,0.00025,120]
[344044633,1733246287868,-995.89,0.00025,120]
[344044634,1733246287908,-500.0,0.00025,120]
[344044635,1733246287950,-2076.1,0.00025,120]
[344044636,1733246287990,-500.0,0.00025,120]
[344044637,1733246288032,-500.0,0.00025,120]
[344044638,1733246288076,-967.71,0.00025,120]
[344044639,1733246288373,-1517.53,0.00025,120]
[344044640,1733246288414,-500.0,0.00025,120]
[344044641,1733246288454,-500.0,0.00025,120]
[344044642,1733246288494,-721.81,0.00025,120]
[344044643,1733246288532,-500.0,0.00025,120]
[344044644,1733246288575,-1554.28,0.00025,120]
[344044645,1733246288615,-1934.64,0.00025,120]
[344044646,1733246288655,-500.0,0.00025,120]
[344044647,1733246288695,-1917.66,0.00025,120]
[344044648,1733246288733,-500.0,0.00025,120]
[344044649,1733246288771,-500.0,0.00025,120]
[344044650,1733246288811,-1199.76,0.00025,120]
[344044651,1733246288858,-1802.03,0.00025,120]
[344044652,1733246288900,-2453.75,0.00025,120]
[344044653,1733246288940,-868.95,0.00025,120]
[344044654,1733246288980,-500.0,0.00025,120]
[344044655,1733246289021,-746.75,0.00025,120]
[344044656,1733246289061,-500.0,0.00025,120]
[344044657,1733246289105,-500.0,0.00025,120]
[344044658,1733246289147,-1270.46,0.00025,120]
[344044659,1733246289190,-500.0,0.00025,120]
[344044660,1733246289233,-500.0,0.00025,120]
[344044661,1733246289279,-500.0,0.00025,120]
[344044662,1733246289327,-1120.88,0.00025,120]
[344044663,1733246289369,-500.11537084,0.00025,120]
[344044664,1733246289410,-500.0,0.00025,120]
[344044665,1733246289453,-500.0,0.00025,120]
[344044666,1733246289493,-500.0,0.00025,120]
[344044667,1733246289534,-704.44,0.00025,120]
[344044668,1733246289577,-500.0,0.00025,120]
[344044669,1733246289617,-500.0,0.00025,120]
[344044670,1733246289657,-500.0,0.00025,120]
[344044671,1733246289696,-1779.62,0.00025,120]
[344044672,1733246289736,-1089.52,0.00025,120]
[344044673,1733246289776,-500.0,0.00025,120]
[344044674,1733246289815,-704.69,0.00025,120]
[344044675,1733246289861,-500.0,0.00025,120]
[344044676,1733246289901,-1130.03,0.00025,120]
[344044677,1733246289941,-686.85,0.00025,120]
[344044678,1733246289981,-500.0,0.00025,120]
[344044679,1733246290023,-1294.83,0.00025,120]
[344044680,1733246290066,-500.0,0.00025,120]
[344044681,1733246290109,-4085.09,0.00025,120]
[344044682,1733246290150,-671.3,0.00025,120]
[344044683,1733246290191,-500.0,0.00025,120]
[344044684,1733246290231,-500.0,0.00025,120]
[344044685,1733246290271,-2136.24,0.00025,120]
[344044686,1733246290312,-500.0,0.00025,120]
[344044687,1733246290354,-500.0,0.00025,120]
[344044688,1733246290395,-500.0,0.00025,120]
[344044689,1733246290436,-500.0,0.00025,120]
[344044690,1733246290475,-500.0,0.00025,120]
[344044691,1733246290515,-765.68,0.00025,120]
[344044692,1733246290553,-500.0,0.00025,120]
[344044693,1733246290593,-1039.96,0.00025,120]
[344044694,1733246290633,-1616.92,0.00025,120]
[344044695,1733246290671,-500.0,0.00025,120]
[344044696,1733246290709,-500.0,0.00025,120]
[344044697,1733246290747,-500.0,0.00025,120]
[344044698,1733246290785,-500.0,0.00025,120]
[344044699,1733246290828,-500.0,0.00025,120]
[344044700,1733246290869,-500.0,0.00025,120]
[344044701,1733246290908,-1080.5,0.00025,120]
[344044702,1733246290946,-500.0,0.00025,120]
[344044703,1733246290985,-500.0,0.00025,120]
[344044704,1733246291024,-500.0,0.00025,120]
[344044705,1733246291064,-500.0,0.00025,120]
[344044706,1733246291107,-500.0,0.00025,120]
[344044707,1733246291148,-500.0,0.00025,120]
[344044708,1733246291187,-500.0,0.00025,120]
[344044709,1733246291228,-1052.63,0.00025,120]
[344044710,1733246291269,-500.0,0.00025,120]
[344044711,1733246291309,-2383.94,0.00025,120]
[344044712,1733246291353,-500.0,0.00025,120]
[344044713,1733246291396,-310.39561343,0.00025,120]
[344044714,1733246291437,-150.121013,0.00025,120]
[344044715,1733246291478,-1730.26,0.00025,120]
[344044716,1733246291519,-500.0,0.00025,120]
[344044717,1733246291558,-500.0,0.00025,120]
[344044718,1733246291600,-500.53,0.00025,120]
[344044719,1733246291639,-286.28256,0.00025,120]
[344044720,1733246291680,-1122.32,0.00025,120]
[344044721,1733246291720,-500.0,0.00025,120]
[344044722,1733246291761,-500.0,0.00025,120]
[344044723,1733246291800,-2583.5,0.00025,120]
[344044724,1733246291839,-500.0,0.00025,120]
[344044725,1733246291878,-500.0,0.00025,120]
[344044726,1733246291916,-532.33023584,0.00025,120]
[344044727,1733246291954,-500.0,0.00025,120]
[344044728,1733246291990,-911.02,0.00025,120]
[344044729,1733246292029,-1103.1,0.00025,120]
[344044730,1733246292067,-1021.05,0.00025,30]
[344044731,1733246292110,-2366.1,0.00025,120]
[344044732,1733246292152,-3118.78,0.00025,120]
[344044733,1733246292193,-500.0,0.00025,120]
[344044734,1733246292233,-631.97,0.00025,120]
[344044735,1733246292563,-1165.4,0.00025,120]
[344044736,1733246292605,-601.06,0.00025,120]
[344044737,1733246292646,-500.0,0.00025,120]
[344044738,1733246292686,-1441.14,0.00025,120]
[344044739,1733246292724,-500.0,0.00025,120]
[344044740,1733246292762,-603.33,0.00025,120]
[344044741,1733246292801,-500.0,0.00025,120]
[344044742,1733246292839,-500.0,0.00025,120]
[344044743,1733246292878,-500.0,0.00025,120]
[344044744,1733246292916,-500.0,0.00025,120]
[344044745,1733246292953,-500.0,0.00025,120]
[344044746,1733246292991,-1010.34,0.00025,120]
[344044747,1733246293030,-500.0,0.00025,120]
[344044748,1733246293069,-500.0,0.00025,120]
[344044749,1733246293111,-662.38,0.00025,120]
[344044750,1733246293150,-500.0,0.00025,120]
[344044751,1733246293189,-500.0,0.00025,120]
[344044752,1733246293228,-5730.49,0.00025,120]
[344044753,1733246293268,-583.44,0.00025,120]
[344044754,1733246293309,-1243.02,0.00025,120]
[344044755,1733246293357,-500.0,0.00025,120]
[344044756,1733246293399,-912.68,0.00025,120]
[344044757,1733246293440,-740.36,0.00025,120]
[344044758,1733246293483,-500.0,0.00025,120]
[344044759,1733246293523,-500.0,0.00025,120]
[344044760,1733246293564,-1367.67,0.00025,120]
[344044761,1733246293606,-1805.69,0.00025,120]
[344044762,1733246293643,-500.0,0.00025,120]
[344044763,1733246293680,-1197.8,0.00025,120]
[344044764,1733246293716,-500.0,0.00025,120]
[344044765,1733246293753,-500.0,0.00025,120]
[344044766,1733246293791,-649.17,0.00025,120]
[344044767,1733246293829,-500.0,0.00025,120]
[344044768,1733246293868,-500.0,0.00025,120]
[344044769,1733246293906,-1834.27,0.00025,120]
[344044770,1733246293946,-505.80625381,0.00025,120]
[344044771,1733246293990,-1046.06,0.00025,120]
[344044772,1733246294034,-500.0,0.00025,120]
[344044773,1733246294080,-1685.63,0.00025,120]
[344044774,1733246294122,-500.0,0.00025,120]
[344044775,1733246294161,-500.0,0.00025,120]
[344044776,1733246294198,-1052.8,0.00025,120]
[344044777,1733246294237,-2004.19,0.00025,120]
[344044778,1733246294277,-259.88907099,0.00025,120]
[344044779,1733246294316,-724.32,0.00025,120]
[344044780,1733246294360,-500.0,0.00025,120]
[344044781,1733246294399,-566.15,0.00025,120]
[344044782,1733246294438,-562.64,0.00025,120]
[344044783,1733246294476,-1476.0,0.00025,120]
[344044784,1733246294515,-500.0,0.00025,120]
[344044785,1733246294552,-2578.73,0.00025,120]
[344044786,1733246294591,-500.0,0.00025,120]
[344044787,1733246294629,-2372.0,0.00025,120]
[344044788,1733246294666,-500.0,0.00025,120]
[344044789,1733246294703,-500.0,0.00025,120]
[344044790,1733246294745,-500.0,0.00025,120]
[344044791,1733246294781,-500.0,0.00025,120]
[344044792,1733246294818,-500.0,0.00025,120]
[344044793,1733246294863,-500.0,0.00025,120]
[344044794,1733246294900,-1428.17,0.00025,120]
[344044795,1733246294938,-500.0,0.00025,120]
[344044796,1733246294976,-500.0,0.00025,120]
[344044797,1733246295014,-500.0,0.00025,120]
[344044798,1733246295053,-500.0,0.00025,120]
[344044799,1733246295092,-500.0,0.00025,120]
[344044800,1733246295129,-500.0,0.00025,120]
[344044801,1733246295170,-500.0,0.00025,120]
[344044802,1733246295207,-500.0,0.00025,120]
[344044803,1733246295246,-500.0,0.00025,120]
[344044804,1733246295283,-594.59,0.00025,30]
[344044805,1733246295320,-500.0,0.00025,120]
[344044806,1733246295360,-500.0,0.00025,120]
[344044807,1733246295397,-500.0,0.00025,120]
[344044808,1733246295435,-500.0,0.00025,120]
[344044809,1733246295471,-500.0,0.00025,120]
[344044810,1733246295509,-2195.87,0.00025,120]
[344044811,1733246295546,-500.0,0.00025,120]
[344044812,1733246295586,-467.34349044,0.00025,120]
[344044813,1733246295623,-1367.25,0.00025,120]
[344044814,1733246295659,-500.0,0.00025,120]
[344044815,1733246295694,-1134.81,0.00025,120]
[344044816,1733246295729,-500.0,0.00025,120]
[344044817,1733246295764,-806.94,0.00025,120]
[344044818,1733246295799,-776.79,0.00025,120]
[344044819,1733246295837,-500.0,0.00025,120]
[344044820,1733246295874,-1493.12,0.00025,120]
[344044821,1733246295910,-500.0,0.00025,120]
[344044822,1733246295946,-1348.93,0.00025,120]
[344044823,1733246295983,-500.0,0.00025,120]
[344044824,1733246296020,-500.0,0.00025,120]
[344044825,1733246296058,-761.26,0.00025,120]
[344044826,1733246296104,-2024.09,0.00025,120]
[344044827,1733246296143,-500.0,0.00025,120]
[344044828,1733246296180,-500.0,0.00025,120]
[344044829,1733246296218,-1036.55,0.00025,120]
[344044830,1733246296255,-1164.16,0.00025,120]
[344044831,1733246296642,-500.0,0.00025,120]
[344044832,1733246296691,-1340.97,0.00025,120]
[344044833,1733246296734,-1587.69,0.00025,120]
[344044834,1733246296775,-500.0,0.00025,120]
[344044835,1733246296813,-500.0,0.00025,120]
[344044836,1733246296863,-500.0,0.00025,120]
[344044837,1733246296901,-691.12,0.00025,120]
[344044838,1733246296938,-1148.63,0.00025,120]
[344044839,1733246296973,-500.0,0.00025,120]
[344044840,1733246297009,-2483.96,0.00025,120]
[344044841,1733246297044,-500.0,0.00025,120]
[344044842,1733246297083,-500.0,0.00025,120]
[344044843,1733246297119,-932.01,0.00025,120]
[344044844,1733246297154,-1415.65,0.00025,120]
[344044845,1733246297195,-515.92578291,0.00025,120]
[344044846,1733246297232,-1100.23,0.00025,120]
[344044847,1733246297271,-4415.58,0.00025,120]
[344044848,1733246297308,-1158.04,0.00025,120]
[344044849,1733246297346,-602.15606085,0.00025,120]
[344044850,1733246297388,-500.0,0.00025,120]
[344044851,1733246297424,-500.0,0.00025,120]
[344044852,1733246297460,-500.0,0.00025,120]
[344044853,1733246297496,-500.0,0.00025,120]
[344044854,1733246297537,-1863.46,0.00025,120]
[344044855,1733246297574,-500.0,0.00025,120]
[344044856,1733246297614,-2006.93,0.00025,120]
[344044857,1733246297656,-500.0,0.00025,120]
[344044858,1733246297696,-500.0,0.00025,120]
[344044859,1733246297734,-576.98,0.00025,120]
[344044860,1733246297773,-626.88,0.00025,120]
[344044861,1733246297809,-512.02,0.00025,120]
[344044862,1733246297848,-160.9024091,0.00025,120]
[344044863,1733246297884,-841.46,0.00025,120]
[344044864,1733246297922,-500.0,0.00025,120]
[344044865,1733246297958,-934.65,0.00025,120]